bitfinex/quotes_ETHUSD_20241030
["timestamp","ask_amount","ask_price","bid_price","bid_amount"]
[1730295657819,3.73721,2675.8,2675.7,0.06264112]
[1730295658002,4.484473,2675.9,2675.2,3.73803]
[1730295658003,0.747403,2675.9,2675.2,3.73803]
[1730295658208,3.73713,2675.9,2675.2,7.47598]
[1730295658402,3.73713,2675.9,2675.3,0.06067597]
[1730295659340,3.73763,2675.5,2674.9,3.73839]
[1730295659504,3.73762,2675.5,2675.0,0.06076815]
[1730295660327,0.823432,2675.5,2674.4,3.89015]
[1730295660494,0.7745,2675.1,2674.5,0.06092184]
[1730295660847,3.73831,2675.0,2674.2,0.1297981]
[1730295661144,3.73842,2675.0,2674.3,0.06098333]
[1730295661458,0.7745,2675.1,2674.3,3.80020333]
[1730295661596,0.7745,2675.1,2674.3,0.06098333]
[1730295661597,3.73866,2674.8,2674.3,0.06098333]
[1730295661802,3.73884,2674.7,2674.3,0.06098333]
[1730295662031,3.73873,2674.7,2674.2,0.1297981]
[1730295662228,3.73873,2674.7,2674.4,0.06129778]
[1730295662428,3.73873,2674.7,2674.3,0.06132853]
[1730295662654,4.52289,2674.6,2673.8,3.73999]
[1730295662855,0.452289,2674.5,2673.8,3.73991]
[1730295663058,3.73916,2674.4,2673.9,0.0594093]
[1730295663240,3.73936,2674.3,2673.6,3.74025]
[1730295663566,3.73936,2674.3,2673.7,0.05551123]
[1730295663567,0.7944,2674.1,2673.7,0.05551123]
[1730295663778,4.53405,2674.1,2673.2,3.74076]
[1730295663928,3.73999,2673.8,2672.9,3.74125]
[1730295664124,12.6449786,2674.0,2672.8,7.05998649]
[1730295664368,3.74039,2673.6,2672.9,3.79503805]
[1730295664667,8.9051986,2674.0,2672.9,0.05390805]
[1730295664968,0.8155,2674.3,2673.8,3.73994]
[1730295665143,0.8155,2674.3,2673.9,0.05360036]
[1730295665665,3.73881,2674.7,2673.9,3.79344036]
[1730295665666,4.55668,2674.6,2673.9,3.79344036]
[1730295665823,0.8178,2674.6,2673.9,0.05360036]
[1730295666024,11.35,2674.9,2673.9,0.05360036]
[1730295666270,11.35,2674.9,2674.1,3.73957]
[1730295666271,8.4171,2674.9,2674.1,3.73957]
[1730295666475,8.4171,2674.9,2674.3,3.7392]
[1730295666476,0.7971,2674.9,2674.3,3.7392]
[1730295666626,0.7971,2675.4,2674.6,3.73876]
[1730295666827,0.7971,2675.4,2675.0,3.73818]
[1730295667034,0.8206,2675.7,2674.7,0.0536311]
[1730295667238,3.73,2675.9,2675.6,3.73738]
[1730295667472,8.4406,2676.2,2675.7,4.11056]
[1730295667654,9.33124108,2676.2,2675.8,3.7372]
[1730295667856,9.33124108,2676.2,2675.7,0.05332383]
[1730295668066,3.7372,2675.8,2675.1,3.73814]
[1730295668241,3.73704,2676.0,2675.2,3.73796]
[1730295668443,3.73713,2675.9,2675.2,3.73796]
[1730295668755,3.73734,2675.7,2675.1,3.73814]
[1730295668959,0.42243867,2675.9,2675.2,3.73802]
[1730295669157,3.73687,2676.1,2675.4,3.73775]
[1730295669341,8.4406,2676.2,2675.6,3.7374]
[1730295669545,8.4406,2676.2,2675.7,3.79041735]
[1730295669750,3.73614,2676.6,2675.9,3.73704]
[1730295669751,0.831,2676.6,2675.9,3.73704]
[1730295669947,12.18652,2677.0,2676.3,3.7364]
[1730295670275,0.1496,2677.3,2676.8,3.73571]
[1730295670480,0.62711247,2677.3,2676.9,3.73556]
[1730295670660,0.62711247,2677.3,2676.9,3.78834892]
[1730295670848,0.62711247,2677.3,2676.9,0.05278892]
[1730295671056,0.62711247,2677.3,2677.1,3.73526]
[1730295671057,0.1496,2677.3,2677.1,3.73526]
[1730295671371,0.1496,2677.3,2677.2,0.05269687]
[1730295671527,0.1496,2677.3,2676.8,0.55]
[1730295671732,0.1496,2677.3,2676.9,0.05278892]
[1730295671972,0.1496,2677.3,2676.3,3.73638]
[1730295672183,0.1496,2677.3,2676.4,3.78927239]
[1730295672472,3.88472,2677.3,2676.4,3.78927239]
[1730295672772,3.88472,2677.3,2676.6,3.73599]
[1730295672773,0.388472,2677.2,2676.6,3.73599]
[1730295672977,0.1496,2677.3,2676.7,0.05244277]
[1730295673227,0.1496,2677.3,2676.9,3.73566]
[1730295673347,0.1496,2677.3,2676.8,0.55]
[1730295673548,0.1496,2677.3,2676.9,3.78801139]
[1730295673761,0.1496,2677.3,2677.0,3.7355]
[1730295674071,0.1496,2677.3,2677.1,0.05232002]
[1730295674500,0.1496,2677.3,2676.8,0.55]
[1730295674634,0.1496,2677.3,2676.9,3.73561]
[1730295674832,0.1496,2677.3,2676.9,3.78456254]
[1730295675239,0.1496,2677.3,2677.1,4.28528]
[1730295675441,0.1496,2677.3,2677.0,0.55]
[1730295675639,3.8847,2677.3,2677.2,0.04886049]
[1730295675842,3.8847,2677.3,2676.6,3.736]
[1730295676074,4.646677,2677.3,2677.2,0.04723078]
[1730295676273,4.646677,2677.3,2676.6,4.286]
[1730295676580,0.911577,2677.3,2676.7,3.78172986]
[1730295676750,0.1496,2677.3,2676.9,3.73563]
[1730295676952,0.1496,2677.3,2677.0,0.04571779]
[1730295677166,3.73538,2677.1,2676.5,3.73618]
[1730295677377,3.7356,2677.0,2676.6,0.04584055]
[1730295677578,3.7356,2677.0,2676.1,3.73666]
[1730295677579,8.24229,2677.0,2676.1,3.73666]
[1730295677877,0.7711,2677.0,2676.4,3.73633]
[1730295678071,5.330939,2677.0,2676.2,3.78253335]
[1730295678259,4.50671,2677.0,2676.5,0.04587125]
[1730295678478,3.73532,2677.2,2676.6,3.73608]
[1730295678661,7.47067,2677.2,2676.6,3.78192055]
[1730295678989,0.9207,2677.3,2676.6,0.04584055]
[1730295679302,3.73587,2676.8,2676.1,3.73675]
[1730295679466,3.73587,2676.8,2676.0,3.73681]
[1730295679467,3.73616,2676.6,2676.0,3.73681]
[1730295679653,0.373587,2676.7,2676.2,0.04443533]
[1730295679853,0.373587,2676.7,2676.0,3.73681]
[1730295679854,0.373587,2676.7,2676.1,0.04446604]
[1730295680194,3.7361,2676.6,2676.2,0.04443533]
[1730295680393,0.373587,2676.7,2676.2,3.73663]
[1730295680688,0.373587,2676.7,2676.3,0.04440463]
[1730295680888,3.73617,2676.6,2676.3,0.04440463]
[1730295681045,3.73625,2676.5,2675.8,7.4742]
[1730295681252,3.73625,2676.5,2676.4,0.04437393]
[1730295681490,0.7758,2676.6,2675.3,3.73776]
[1730295681694,0.7758,2676.6,2674.9,0.01]
[1730295681695,0.7758,2676.6,2675.1,3.79417852]
[1730295681856,3.7373,2675.8,2675.4,0.04468104]
[1730295682188,3.73699,2676.0,2675.5,0.04465032]
[1730295682389,3.73699,2676.0,2675.3,3.73789]
[1730295682556,3.73699,2676.0,2675.4,0.04321899]
[1730295682752,3.7372,2675.8,2675.4,0.04321899]
[1730295683064,3.73748,2675.6,2675.4,0.04321899]
[1730295683590,3.73748,2675.6,2675.5,0.04191638]
[1730295683796,4.55328,2675.8,2675.2,3.73794]
[1730295684087,3.73721,2675.8,2675.3,3.77979783]
[1730295684292,3.73721,2675.8,2675.3,0.04197783]
[1730295684655,0.7704,2676.1,2675.0,0.37384]
[1730295684656,3.73762,2675.5,2675.0,0.37384]
[1730295684855,3.73762,2675.5,2675.4,0.04194711]
[1730295685094,3.73763,2675.5,2675.0,0.37384]
[1730295686099,7.47634,2675.1,2674.0,3.7397]
[1730295686297,3.73859,2674.8,2673.4,0.01]
[1730295686604,3.73859,2674.8,2674.2,3.7393]
[1730295686900,3.73881,2674.7,2674.0,3.73958]
[1730295687309,3.73911,2674.5,2673.5,0.37605]
[1730295687492,0.373911,2674.4,2673.5,0.37605]
[1730295687691,0.7548,2674.5,2673.5,3.74036]
[1730295687895,3.73923,2674.4,2673.2,3.7408]
[1730295688208,3.73923,2674.4,2673.6,3.74017]
[1730295688689,0.7548,2674.5,2673.3,0.37408]
[1730295688876,3.73961,2674.1,2673.4,3.74042]
[1730295689066,4.49389,2674.5,2673.8,3.73987]
[1730295689375,0.7548,2674.5,2673.4,3.74055]
[1730295689599,4.49383,2674.5,2673.8,3.73989]
[1730295689900,0.7548,2674.5,2674.0,3.73966]
[1730295690268,4.49383,2674.5,2673.8,7.47977]
[1730295690599,3.73917,2674.4,2673.8,3.73988]
[1730295690900,0.7548,2674.5,2673.9,3.73983]
[1730295691109,0.7548,2674.5,2673.8,3.73988]
[1730295691272,0.7548,2674.5,2673.9,3.73977]
[1730295691471,0.7548,2674.5,2674.0,3.7397]
[1730295692000,0.763,2674.9,2674.2,3.73929]
[1730295692217,0.0645812,2675.2,2674.4,3.73915]
[1730295692511,7.62,2675.4,2674.3,3.73929]
[1730295692712,0.763,2675.7,2675.3,3.73782]
[1730295692868,0.763,2675.7,2675.0,3.73818]
[1730295693071,4.50034,2675.7,2675.1,3.73813]
[1730295693277,0.763,2675.7,2675.2,3.738]
[1730295693603,0.763,2675.7,2675.0,3.73824]
[1730295693776,4.50041,2675.7,2675.0,3.73819]
[1730295693971,3.73748,2675.6,2675.0,3.73819]
[1730295694269,4.50041,2675.7,2675.1,3.73817]
[1730295694615,3.7377,2675.5,2674.8,3.73852]
[1730295694780,3.7377,2675.5,2674.8,3.7385]
[1730295697517,7.47598,2675.3,2674.6,3.73876]
[1730295697812,3.73796,2675.3,2674.8,3.73851]
[1730295698116,3.73769,2675.5,2674.9,3.73845]
[1730295698284,4.561498,2675.5,2674.9,3.73845]
[1730295698610,4.50041,2675.7,2674.1,0.01]
[1730295698819,0.763,2675.7,2675.3,3.73789]
[1730295699321,3.73693,2676.0,2675.4,3.77553244]
[1730295699469,3.73693,2676.0,2675.4,7.51320244]
[1730295699686,3.73693,2676.0,2675.4,3.77551244]
[1730295699881,0.8287,2676.1,2675.5,3.73751]
[1730295700090,3.73679,2676.1,2675.4,3.77559244]
[1730295700327,3.73679,2676.1,2675.2,3.73795]
[1730295700328,0.55,2676.2,2675.6,3.77513483]
[1730295700542,0.55,2676.2,2675.6,3.73739]
[1730295700846,0.55,2676.2,2675.8,3.73708]
[1730295700985,0.55,2676.2,2676.0,3.73683]
[1730295701328,0.55,2676.2,2676.1,3.77430512]
[1730295701682,0.55,2676.2,2676.1,4.32430512]
[1730295703114,0.55,2676.2,2676.1,0.03752512]
[1730295703544,0.55,2676.2,2676.1,0.03734634]
[1730295703759,4.28667,2676.2,2676.1,0.03610146]
[1730295704068,1.35231,2676.2,2675.7,3.73732]
[1730295704230,0.55,2676.2,2675.6,3.73737]
[1730295704432,4.28664,2676.2,2675.8,0.05450408]
[1730295704679,4.28664,2676.2,2675.6,3.73743]
[1730295704972,4.28664,2676.2,2675.5,3.73761]
[1730295705131,0.55,2676.2,2675.6,3.79207646]
[1730295705334,0.978645,2676.2,2675.7,3.73731]
[1730295705531,0.55,2676.2,2675.9,3.73697]
[1730295705844,0.55,2676.2,2675.7,3.73728]
[1730295705845,0.55,2676.2,2676.0,0.05440171]
[1730295706051,0.55,2676.2,2675.7,3.73728]
[1730295706251,0.55,2676.2,2676.1,0.05435053]
[1730295706444,0.7888,2676.0,2675.4,3.73773]
[1730295706648,4.52584,2676.0,2675.5,0.05465766]
[1730295706836,0.7888,2676.0,2675.5,0.05465766]
[1730295707252,0.7888,2676.0,2675.5,3.79225766]
[1730295707587,0.7888,2676.0,2675.5,0.05465766]
[1730295707588,4.52579,2676.0,2675.5,0.05465766]
[1730295707822,0.7888,2676.0,2675.5,0.05465766]
[1730295708088,0.7888,2676.0,2675.4,3.73763]
[1730295708284,5.033288,2676.0,2675.4,3.73763]
[1730295708589,0.507558,2676.0,2675.5,0.05465766]
[1730295708899,0.55,2676.2,2675.5,0.05465766]
[1730295708900,0.55,2676.2,2676.0,3.7369]
[1730295709182,4.52498,2676.6,2676.1,3.73678]
[1730295709387,0.7888,2676.6,2676.1,3.73664]
[1730295709591,0.7888,2677.0,2675.9,3.73706]
[1730295709750,4.52442,2677.0,2676.3,7.47285]
[1730295709947,0.1496,2677.3,2676.2,0.01]
[1730295710151,0.1496,2677.3,2676.0,0.438706]
[1730295710152,3.73541,2677.1,2676.0,0.02]
[1730295710375,0.9012,2677.3,2676.5,0.55]
[1730295710560,0.9012,2677.3,2675.9,3.73692]
[1730295710757,0.9012,2677.3,2676.1,4.28667]
[1730295710758,3.7359,2676.8,2676.1,4.28667]
[1730295710962,3.7359,2676.8,2676.2,3.73663]
[1730295711374,3.73561,2677.0,2676.2,3.73655]
[1730295711575,0.9012,2677.3,2676.1,0.55]
[1730295711576,3.73533,2677.2,2676.1,0.55]
[1730295711788,3.73587,2676.8,2676.1,4.28667]
[1730295711977,3.73587,2676.8,2676.2,3.73662]
[1730295712181,3.73566,2676.9,2676.2,3.73662]
[1730295712498,0.463653,2677.2,2675.7,3.74731]
[1730295712499,0.7739,2676.7,2676.0,3.73683]
[1730295712701,3.73616,2676.6,2676.0,3.73683]
[1730295712995,0.7739,2676.7,2676.2,3.73662]
[1730295713190,4.50952,2677.0,2676.3,3.73641]
[1730295713406,0.373558,2676.9,2676.3,3.7364]
[1730295713552,4.109288,2676.9,2676.3,3.7364]
[1730295713954,4.109288,2676.9,2676.1,3.73669]
[1730295713955,3.7358,2676.8,2676.1,3.7367]
[1730295714193,0.7845088,2676.7,2676.1,3.7367]
[1730295714379,0.7845088,2676.7,2676.0,0.55]
[1730295714587,0.7739,2677.0,2676.4,0.55]
[1730295714805,0.7739,2677.0,2676.2,0.55]
[1730295714806,0.7739,2677.0,2676.7,3.73589]
[1730295715002,0.7739,2677.0,2676.5,3.73613]
[1730295715217,0.7739,2677.0,2676.8,3.73573]
[1730295715507,0.9089,2677.3,2676.8,3.73569]
[1730295715678,0.9089,2677.3,2676.6,3.73608]
[1730295715880,0.1496,2677.3,2677.1,3.73526]
[1730295716218,0.1496,2677.3,2677.2,3.73524]
[1730295717090,0.1496,2677.3,2677.2,4.28524]
[1730295718637,0.1496,2677.3,2677.2,7.28524]
[1730295719608,0.1496,2677.3,2677.2,12.19476454]
[1730295719820,0.1496,2677.3,2677.2,13.78976699]
[1730295720322,0.1496,2677.3,2677.2,13.79976699]
[1730295720541,0.7617,2678.7,2678.3,3.73364]
[1730295720750,0.7617,2678.7,2678.2,3.73385]
[1730295720891,0.7617,2678.7,2678.0,3.73402]
[1730295721091,0.7617,2678.7,2678.2,3.73384]
[1730295721409,0.7617,2678.7,2678.4,3.73348]
[1730295721945,0.7749,2679.1,2678.3,0.55]
[1730295722122,0.7749,2679.1,2678.5,0.55]
[1730295722123,3.73278,2679.0,2678.5,0.55]
[1730295722331,3.73278,2679.0,2678.4,3.18357]
[1730295722525,0.7749,2679.1,2678.5,3.73341]
[1730295722724,1.5989,2679.1,2678.6,3.73328]
[1730295723097,1.5989,2679.1,2678.2,4.90952454]
[1730295723098,0.7749,2679.1,2678.3,0.55]
[1730295723349,0.7749,2679.1,2677.9,0.55]
[1730295723350,3.73273,2679.0,2677.9,0.55]
[1730295723504,4.53193,2678.5,2677.6,8.64415454]
[1730295723701,3.734,2678.1,2677.4,3.73486]
[1730295724143,3.734,2678.1,2677.4,7.46975]
[1730295724349,0.746771,2678.1,2677.2,8.64470454]
[1730295724496,0.764,2677.8,2677.2,3.73518]
[1730295724697,0.764,2677.8,2677.3,3.73504]
[1730295724898,0.764,2677.8,2677.2,3.73518]
[1730295725204,7.46928,2677.7,2677.0,3.73543]
[1730295725448,4.557958,2677.7,2677.0,3.73543]
[1730295725599,4.557958,2677.7,2676.8,8.64523454]
[1730295725806,3.73472,2677.6,2677.0,3.73552]
[1730295726005,0.764,2677.8,2677.2,3.73514]
[1730295726241,0.764,2677.8,2677.0,3.73543]
[1730295726538,3.73463,2677.7,2677.1,3.7353]
[1730295726740,4.49842,2677.8,2677.2,7.47039]
[1730295727096,0.764,2677.8,2677.1,0.55]
[1730295727302,0.7582,2678.3,2677.3,0.55]
[1730295727500,3.73385,2678.2,2677.6,3.73468]
[1730295727701,3.7342,2678.0,2677.3,4.28502]
[1730295727938,3.73394,2678.2,2677.5,3.73473]
[1730295728132,0.449214,2678.1,2677.6,3.73467]
[1730295728438,3.73413,2678.0,2677.5,3.73482]
[1730295728642,0.449214,2678.1,2677.5,3.73482]
[1730295728803,3.73414,2678.0,2677.5,3.73472]
[1730295729003,4.5258664,2678.0,2677.5,3.73472]
[1730295729211,4.5258664,2678.0,2677.3,3.73501]
[1730295729539,3.73392,2678.2,2677.6,3.73467]
[1730295729756,3.73392,2678.2,2677.6,7.46927]
[1730295729957,3.73392,2678.2,2677.6,3.51198515]
[1730295730443,3.73413,2678.0,2677.4,3.73487]
[1730295730830,3.73392,2678.2,2677.4,3.73487]
[1730295731063,0.449212,2678.2,2677.4,3.73496]
[1730295731357,4.49191,2678.3,2677.8,3.7343]
[1730295731529,0.7582,2678.3,2677.6,3.7346]
[1730295731733,0.7582,2678.3,2677.7,3.7345]
[1730295731961,4.492,2678.3,2677.7,7.46897]
[1730295732142,5.314552,2678.3,2677.7,7.46893]
[1730295732348,5.314552,2678.3,2677.7,3.7184653]
[1730295732556,5.314552,2678.3,2677.6,3.73468]
[1730295732723,5.314552,2678.3,2677.5,3.73475]
[1730295732724,3.73409,2678.1,2677.5,3.73482]
[1730295733055,3.73419,2678.0,2677.5,3.73482]
[1730295733264,7.4682,2678.1,2677.5,3.73482]
[1730295733414,3.73409,2678.1,2677.6,3.73467]
[1730295733823,3.73409,2678.1,2677.5,3.73482]
[1730295734021,3.73409,2678.1,2677.5,3.73474]
[1730295734261,3.73409,2678.1,2677.6,3.73468]
[1730295734430,3.73409,2678.1,2677.3,0.55]
[1730295734636,3.73429,2677.9,2677.4,3.73488]
[1730295734844,4.22461775,2678.1,2677.5,3.73473]
[1730295735152,0.7582,2678.3,2677.9,3.73425]
[1730295735521,0.7582,2678.3,2678.0,2.96314683]
[1730295735718,0.7582,2678.3,2677.4,4.18104874]
[1730295735719,0.7582,2678.3,2678.1,3.73393]
[1730295735945,4.53861,2678.8,2677.8,0.55]
[1730295736150,3.73315,2678.7,2678.1,1.00853207]
[1730295736358,4.53861,2678.8,2678.2,3.73376]
[1730295736660,3.73315,2678.7,2678.1,3.7339]
[1730295736860,3.73315,2678.7,2677.9,3.73413]
[1730295737025,3.73315,2678.7,2677.7,3.55]
[1730295737238,3.73331,2678.6,2678.0,3.73405]
[1730295737441,3.73315,2678.7,2678.0,3.73402]
[1730295737744,3.73387,2678.2,2677.6,3.73458]
[1730295737950,7.46782,2678.2,2677.6,3.73458]
[1730295738155,3.73405,2678.1,2677.6,3.73458]
[1730295738352,3.73342,2678.6,2677.7,4.18104874]
[1730295738661,4.54167,2678.4,2677.9,3.73418]
[1730295738865,0.8081,2678.4,2677.9,3.73418]
[1730295739040,0.8081,2678.4,2677.1,3.0]
[1730295739244,0.8081,2678.4,2676.2,0.36872886]
[1730295739245,0.7547,2677.6,2676.4,0.27674518]
[1730295739446,0.7547,2677.0,2676.3,3.73641]
[1730295739743,3.73588,2676.8,2676.1,3.73667]
[1730295739944,7.47176,2676.8,2676.2,0.373667]
[1730295740290,3.73586,2676.8,2676.2,0.373667]
[1730295740490,3.73569,2676.9,2676.2,0.373667]
[1730295740780,3.0,2677.3,2675.7,4.18104874]
[1730295740781,3.73525,2677.2,2676.5,3.73612]
[1730295741254,3.7354,2677.1,2676.5,3.73612]
[1730295741459,3.73562,2677.0,2676.4,3.73633]
[1730295742263,3.7356,2677.0,2676.4,0.74727]
[1730295742645,3.73574,2676.9,2676.4,0.74727]
[1730295742884,3.7356,2677.0,2676.3,3.73637]
[1730295743083,3.7356,2677.0,2676.3,7.47277]
[1730295743445,3.73584,2676.8,2676.2,3.7366]
[1730295743665,3.7356,2677.0,2676.3,3.73649]
[1730295743882,3.7357,2676.9,2676.3,3.73649]
[1730295744140,3.7356,2677.0,2676.3,0.747309]
[1730295744392,3.7356,2677.0,2675.8,3.73716]
[1730295744393,3.73617,2676.6,2675.8,3.73709]
[1730295744546,0.8225,2676.5,2676.0,3.73683]
[1730295745150,0.8225,2676.5,2675.6,0.2776937]
[1730295745346,0.8225,2676.5,2675.9,3.73694]
[1730295745546,0.8225,2676.5,2676.0,3.73683]
[1730295745778,3.73618,2676.6,2676.0,3.73683]
[1730295746093,3.73594,2676.7,2676.0,3.73683]
[1730295746402,3.73611,2676.6,2676.0,3.73683]
[1730295746552,3.73592,2676.8,2676.2,3.73655]
[1730295746893,3.73548,2677.1,2676.4,3.73626]
[1730295747096,0.7831,2677.2,2676.7,3.73586]
[1730295747295,0.7831,2677.2,2676.6,3.73596]
[1730295747481,4.51841,2677.2,2676.3,0.55]
[1730295747799,3.73567,2676.9,2676.3,0.4660385]
[1730295747993,0.7831,2677.2,2676.4,3.73632]
[1730295747994,3.73552,2677.0,2676.4,3.73632]
[1730295748205,3.73567,2676.9,2676.4,3.73632]
[1730295748365,3.7355,2677.1,2676.4,3.73632]
[1730295748569,0.7831,2677.2,2676.8,3.73579]
[1730295748768,3.7354,2677.1,2676.6,7.47201]
[1730295749095,3.7354,2677.1,2676.6,4.538191]
[1730295749397,0.7831,2677.2,2676.6,4.538181]
[1730295749567,3.73545,2677.1,2676.6,8.274161]
[1730295749753,3.73552,2677.0,2676.5,3.73615]
[1730295749954,3.73539,2677.1,2676.6,3.73599]
[1730295750195,3.73539,2677.1,2676.1,3.73669]
[1730295750196,3.73559,2677.0,2676.4,4.28629]
[1730295750376,4.51845,2677.2,2676.3,3.73642]
[1730295750377,7.4715,2676.9,2676.3,3.73642]
[1730295750581,4.51838,2677.2,2676.2,0.55]
[1730295750796,3.73576,2676.9,2676.2,3.73659]
[1730295751096,4.5197,2676.6,2676.1,3.73669]
[1730295751256,0.7836,2676.6,2676.2,3.7366]
[1730295751598,3.73567,2676.9,2676.4,3.73636]
[1730295751770,3.73528,2677.2,2676.5,3.73615]
[1730295751967,3.73528,2677.2,2676.3,3.7365]
[1730295752172,0.7637,2677.3,2676.8,3.73578]
[1730295752397,0.7637,2677.3,2676.7,3.73586]
[1730295752398,4.49889,2677.3,2676.7,3.73586]
[1730295752555,4.49889,2677.3,2676.8,3.73579]
[1730295752755,4.49889,2677.3,2676.3,7.28648]
[1730295752756,3.73527,2677.2,2676.7,3.73592]
[1730295753155,0.7637,2677.3,2676.8,3.7358]
[1730295753389,7.4696,2677.6,2676.9,3.73566]
[1730295753572,0.7572,2677.7,2677.4,3.73488]
[1730295753789,1.3072,2678.0,2677.6,3.73468]
[1730295754601,3.73433,2677.9,2677.4,3.73488]
[1730295754775,5.04139,2678.0,2677.5,3.73475]
[1730295755170,1.3072,2678.0,2677.6,3.73467]
[1730295755359,0.55,2678.0,2677.7,3.73445]
[1730295756082,0.55,2678.0,2677.8,3.73437]
[1730295756455,0.55,2678.0,2677.7,3.73444]
[1730295756994,0.55,2678.0,2677.8,3.73439]
[1730295757305,0.55,2678.0,2677.7,3.73453]
[1730295757460,0.55,2678.0,2677.8,3.7343]
[1730295757796,0.55,2678.0,2677.6,3.73468]
[1730295757971,4.28413,2678.0,2677.5,3.73475]
[1730295758508,0.55,2678.0,2677.6,3.73459]
[1730295758808,0.55,2678.0,2677.7,3.73453]
[1730295759296,0.55,2678.0,2677.8,3.73439]
[1730295759664,0.55,2678.0,2677.6,3.73459]
[1730295759875,3.73385,2678.2,2677.7,3.73454]
[1730295760217,0.7824,2678.3,2677.7,3.73446]
[1730295760372,4.51617,2678.3,2677.7,3.73446]
[1730295760572,3.73386,2678.2,2677.7,3.73447]
[1730295760794,3.73386,2678.2,2677.7,3.73446]
[1730295760994,4.51611,2678.3,2677.7,3.73445]
[1730295761199,3.73391,2678.2,2677.7,3.73445]
[1730295761415,3.73399,2678.1,2677.6,3.73466]
[1730295762614,3.73387,2678.2,2677.8,3.73432]
[1730295762917,3.73387,2678.2,2677.7,3.73453]
[1730295763556,3.73399,2678.1,2677.6,3.73467]
[1730295763716,3.73399,2678.1,2677.6,3.7346]
[1730295764015,3.73391,2678.2,2677.7,3.73451]
[1730295764609,3.73399,2678.1,2677.7,3.73451]
[1730295764812,3.73399,2678.1,2677.6,3.7346]
[1730295765023,3.73399,2678.1,2677.4,3.73488]
[1730295765171,3.73399,2678.1,2677.5,0.55]
[1730295765509,7.46808,2678.1,2677.6,3.73457]
[1730295765687,3.73399,2678.1,2677.6,3.73457]
[1730295766107,4.51621,2678.3,2677.7,3.73451]
[1730295766277,0.7824,2678.3,2677.5,0.55]
[1730295766614,3.73407,2678.1,2677.6,3.73468]
[1730295766821,3.73394,2678.2,2677.3,0.55]
[1730295767029,3.73394,2678.2,2677.6,3.73462]
[1730295767325,3.73399,2678.1,2677.3,0.55]
[1730295767529,3.73399,2678.1,2677.7,0.3733]
[1730295767831,3.73399,2678.1,2677.6,3.73467]
[1730295768043,3.73415,2678.0,2677.6,3.73467]
[1730295768190,7.46807,2678.1,2677.6,3.73467]
[1730295768398,3.73399,2678.1,2677.6,3.73467]
[1730295768591,3.73381,2678.3,2677.8,3.73437]
[1730295768797,3.73381,2678.3,2677.8,3.73434]
[1730295768997,3.73381,2678.3,2677.8,3.73432]
[1730295769331,3.73378,2678.3,2677.8,3.73432]
[1730295769531,3.73385,2678.2,2677.8,0.55]
[1730295770397,3.73385,2678.2,2677.8,3.7344]
[1730295770593,3.73385,2678.2,2677.7,4.28448]
[1730295770895,3.73385,2678.2,2677.7,0.55]
[1730295771231,3.73364,2678.4,2677.7,4.712987]
[1730295771548,3.73372,2678.3,2677.9,0.55]
[1730295772003,3.73387,2678.2,2677.9,0.55]
[1730295772205,3.73387,2678.2,2677.6,3.73466]
[1730295772409,3.73413,2678.0,2677.6,3.73466]
[1730295773225,3.73387,2678.2,2677.7,3.73454]
[1730295773397,3.73387,2678.2,2677.8,3.73439]
[1730295773594,3.73373,2678.3,2677.7,3.73454]
[1730295773893,4.56311,2678.6,2678.1,3.73387]
[1730295773894,4.563,2678.6,2678.1,3.73387]
[1730295774232,0.8052,2679.2,2678.2,4.73123383]
[1730295774454,3.73235,2679.3,2678.8,3.73294]
[1730295774737,0.8052,2679.5,2678.2,0.3733]
[1730295774975,3.73308,2678.8,2678.4,0.55]
[1730295775358,3.73363,2678.4,2678.0,0.55]
[1730295775521,0.8006,2678.9,2678.0,4.2841]
[1730295775725,3.73342,2678.6,2678.0,4.28405]
[1730295775925,3.73372,2678.3,2677.9,0.3733]
[1730295776239,3.73391,2678.2,2677.7,6.73452]
[1730295776436,3.73391,2678.2,2677.7,7.8604094]
[1730295776641,3.73372,2678.3,2677.7,3.73453]
[1730295776841,3.73372,2678.3,2677.7,3.73444]
[1730295777355,3.73372,2678.3,2677.8,3.73431]
[1730295778155,3.73372,2678.3,2677.8,3.73439]
[1730295778432,3.73385,2678.2,2677.8,3.73439]
[1730295778628,3.73354,2678.5,2677.8,3.73439]
[1730295778828,4.18123383,2678.8,2678.1,3.73392]
[1730295779028,3.73345,2678.5,2678.1,3.73392]
[1730295779260,3.73322,2678.7,2678.2,3.73374]
[1730295780069,3.73379,2678.3,2677.8,3.73434]
[1730295780267,3.73419,2678.0,2677.5,3.73475]
[1730295780640,3.73419,2678.0,2677.5,7.46951]
[1730295780847,3.73419,2678.0,2677.5,3.73475]
[1730295781044,3.73448,2677.8,2677.2,3.73513]
[1730295781245,3.73399,2678.1,2676.9,0.3733]
[1730295781432,0.8202,2677.7,2676.6,0.05605027]
[1730295781631,0.8202,2677.7,2676.8,3.73566]
[1730295781632,3.73503,2677.4,2676.8,3.73566]
[1730295781869,3.73503,2677.4,2676.9,3.73559]
[1730295782068,3.73482,2677.5,2676.9,3.73559]
[1730295782281,3.73496,2677.4,2676.5,0.3733]
[1730295782486,7.47038,2677.3,2676.7,3.73592]
[1730295782642,3.73497,2677.4,2676.9,3.73564]
[1730295783244,3.73491,2677.5,2677.0,3.73538]
[1730295783772,4.55485,2677.7,2677.2,3.73517]
[1730295783981,3.73422,2678.0,2677.4,3.73484]
[1730295784158,3.73422,2678.0,2677.4,3.73485]